Cogmind - Beta 16 @@@ ROGUE MODE // 2026.01.06 @ 17:26:12 Player: monistgf Result: Destroyed by D-53 Grenadier with Mini Grenade Launcher Performance ------------- Evolutions (0) 0 Regions Visited (2) 400 Robots Destroyed (8) 40 Value Destroyed (239) 239 Prototype IDs (0) 0 Alien Tech Used (0) 0 Bonus (46) 46 TOTAL SCORE: 725 Bonus ------- Follower Combat Kills 46 Cogmind --------- Core Integrity 0/250 Matter 205/300 Energy 99/100 System Corruption 0% Temperature Cool (0) Movement Core (50) Location -10/Mines Parts ------- > --- POWER (1) -------- (None) > --- PROPULSION (2) --- (None) > --- UTILITY (2) ------ (None) > --- WEAPON (2) ------- (None) > --- INVENTORY (5) ---- Light Treads Aluminum Leg Signal Interpreter Improved Terrain Scanner Medium Laser Peak State ------------ > --- POWER ------------ Light Nuclear Core > --- PROPULSION ------- Makeshift Leg Makeshift Leg > --- UTILITY ---------- Large Storage Unit > --- WEAPON ----------- Slug Cannon > --- INVENTORY -------- Ion Engine Light Ion Engine Light Treads Light Treads Aluminum Leg Aluminum Leg Signal Interpreter Improved Terrain Scanner Medium Laser Medium Laser Light Assault Rifle Hammer [Rating: 17] Favorites ----------- Power Light Nuclear Core Engine Ion Engine Power Core Light Nuclear Core Propulsion Wheel Treads Light Treads Leg Aluminum Leg Wheel Wheel Utility Large Storage Unit Device Heat Sink Storage Large Storage Unit Weapon Medium Laser Energy Gun Medium Laser Ballistic Gun Light Assault Rifle Ballistic Cannon Slug Cannon Launcher Grenade Launcher Build | -11 -10 -10 ------- Run | Yrd Mat Min Slots Evolved . | . . . Power . | . . . Propulsion . | . . . Utility . | . . . Weapon . | . . . Parts Attached 15 | . 10 5 Power 3 | . 3 . Engine 2 | . 2 . Core 1 | . 1 . Reactor . | . . . Propulsion 7 | . 4 3 Treads 2 | . 1 1 Leg 2 | . . 2 Wheel 3 | . 3 . Hover . | . . . Flight . | . . . Utility 2 | . 2 . Device 1 | . 1 . Storage 1 | . 1 . Processor . | . . . Hackware . | . . . Protection . | . . . Artifact . | . . . Weapon 3 | . 1 2 Energy Gun . | . . . Energy Cannon . | . . . Ballistic Gun 1 | . 1 . Ballistic Cannon 1 | . . 1 Launcher 1 | . . 1 Special Weapon . | . . . Impact Weapon . | . . . Slashing Weapon . | . . . Piercing Weapon . | . . . Special Melee Weapon . | . . . Unidentified Prototypes . | . . . Parts Lost 6 | . 1 5 Power 1 | . . 1 Propulsion 3 | . 1 2 Utility 1 | . . 1 Weapon 1 | . . 1 Highest Loss Streak 5 | . 1 5 To Critical Strikes . | . . . Average Backups 11 | . 9 13 Power 1 | . 1 2 Propulsion 4 | . 3 5 Utility 2 | . 1 2 Weapon 2 | . 2 3 Tool/Special . | . . . Unused Backups 9 | . 2 7 Power 2 | . 2 . Propulsion 2 | . . 2 Utility 3 | . . 3 Weapon 2 | . . 2 Tool/Special . | . . . Average Slot Usage (%) 97 | . 96 99 Engine 5 | . 9 . Core 8 | . 4 14 Treads 11 | . 9 14 Leg 2 | . 3 . Wheel 14 | . 14 14 Device 11 | . 10 13 Storage 14 | . 14 14 Energy Gun 15 | . 16 13 Ballistic Gun 10 | . 11 10 Ballistic Cannon 1 | . . 3 Peak Build Rating 17 | . 10 17 Average Rating 9 | . 7 11 On Entrance 7 | 6 6 10 Avg Prop Armor Cover (%) 12 | . 13 12 Naked Turns 1 | . . 1 Heaviest Build 36 | 12 32 36 Greatest Support 26 | 20 26 20 Greatest Overweight (x) 3 | . 2 3 Average Overweight (x) 1 | . 1 2 Largest Inventory Capacity 15 | . 15 15 Average Capacity 14 | . 14 14 Most Carried 15 | . 13 15 Average Carried 11 | . 9 13 Final Capacity 15 | 8 15 5 Final Carried 12 | 6 12 5 Class Distribution -------------------- 100% | Mutant Dominant Class ---------------- Mutant | -10/Materials Mutant | -10/Mines Resources | -11 -10 -10 ----------- Run | Yrd Mat Min Matter Collected 325 | 146 175 4 Remotely . | . . . Salvage Created 361 | . 256 105 Parts 15 | . 13 2 Haulers Intercepted . | . . . Recyclers Shooed . | . . . Parts Field Recycled . | . . . Retrieved Matter . | . . . Parts Self-Destructed . | . . . Prevented . | . . . Parts Restored . | . . . Kills | -11 -10 -10 ------- Run | Yrd Mat Min Combat Hostiles Destroyed 14 | . 4 10 Guns 5 | . 4 1 AOE 9 | . . 9 Classes Destroyed 4 | . 3 1 Tunneler 2 | . 2 . Watcher 1 | . 1 . Grunt 5 | . 4 1 Assembled 9 | . . 9 Best Kill Streak 9 | . 2 9 Combat Bots Only 9 | . 2 9 Max Kills in Single Turn 2 | . 1 2 Gunslinging . | . . . Exploded 2 | . . 2 Melee . | . . . Uniques/NPCs Destroyed . | . . . Combat | -11 -10 -10 -------- Run | Yrd Mat Min Hostile Shots Fired 47 | . 23 24 Missed 7 | . 2 5 Hits 40 | . 21 19 Projectile 40 | . 21 19 AOE 9 | . . 9 Critical Strikes 2 | . 1 1 Part Disruptions 1 | . . 1 Damage Taken 870 | . 301 569 Core 250 | . 53 197 Absorbed by Shields . | . . . Core Remaining (%) 100 | 100 . . Volleys Fired 36 | . 26 10 Largest 2 | . 2 2 Hottest 70 | . 70 70 Shots Fired 66 | . 52 14 Gun 60 | . 52 8 Cannon . | . . . Launcher 6 | . . 6 Special . | . . . Kinetic 30 | . 26 4 Thermal 30 | . 26 4 Explosive 6 | . . 6 Electromagnetic . | . . . Robot Hit Streak 20 | . 20 13 Robot Miss Streak 3 | . 3 2 Penetration Max . | . . . Secondary Targets . | . . . Shots Hit Robots 47 | . 36 11 Core Hits 36 | . 14 22 Critical Kills . | . . . Critical Parts Destroyed . | . . . Critical Strikes 2 | . 2 . Burn 2 | . 2 . Melee Attacks . | . . . Impact . | . . . Slashing . | . . . Piercing . | . . . Sneak Attacks . | . . . Combat Hostiles . | . . . Follow-up Attacks . | . . . Damage Inflicted 1052 | . 390 662 Guns 467 | . 390 77 Cannons . | . . . Explosions 585 | . . 585 Melee . | . . . Ramming . | . . . Kinetic 164 | . 138 26 Thermal 303 | . 252 51 Explosive 585 | . . 585 Electromagnetic . | . . . Impact . | . . . Slashing . | . . . Piercing . | . . . Highest Corruption . | . . . Average Corruption . | . . . Corruption Purged . | . . . Corruption Blocked . | . . . Overload Shots . | . . . Overflow Damage 4 | . . 4 Projectiles . | . . . Explosions 4 | . . 4 Melee . | . . . Knockbacks . | . . . Impact . | . . . Kinetic . | . . . Secondary . | . . . Self-Inflicted Damage 15 | . . 15 Shots 1 | . . 1 Rammed . | . . . Targets Rammed . | . . . Kicked . | . . . Crushed . | . . . Highest Temperature 68 | . 68 62 Average Temperature 20 | . 19 20 Received Heat Transfer 318 | . 180 138 Siege Activations . | . . . Martial Activations . | . . . Shielding Activations . | . . . Robots Disrupted . | . . . Combat Hostiles . | . . . Robots Corrupted . | . . . Combat Hostiles . | . . . Parts Fried . | . . . Impact Corruptions . | . . . Robots Melted . | . . . Combat Hostiles . | . . . Parts Melted 3 | . 2 1 Heat Transferred 1036 | . 888 148 Parts Sabotaged . | . . . Parts Stolen . | . . . Parts Stripped . | . . . Power Chain Reactions . | . . . Alert | -11 -10 -10 ------- Run | Yrd Mat Min Maximum Alert Level . | . . . Low Security (%) 100 | . 100 100 Level 1 . | . . . Level 2 . | . . . Level 3 . | . . . Level 4 . | . . . Level 5 . | . . . High Security . | . . . Max Security . | . . . Peak Influence 68 | . 68 60 Initial 9 | . . 9 Average 21 | . 19 24 Influence Increases 334 | . 167 167 Destroy 0b10 Robot/C 180 | . 80 100 Destroy 0b10 Robot/NC 15 | . 15 . Destroy Leader 42 | . 22 20 Allied During Kill 10 | . . 10 Successful Hack 34 | . 34 . Destroy Structure 38 | . 1 37 Lose Combat Pursuer 15 | . 15 . Influence Decreases 334 | . 143 191 Entered New Map 15 | . . 15 Time Decay 262 | . 133 129 Lost Part 17 | . 10 7 Lost Ally 40 | . . 40 Squads Dispatched 1 | . 1 . Investigation 1 | . 1 . Extermination . | . . . Reinforcement . | . . . Assault . | . . . Garrison . | . . . Intercept . | . . . Searches Triggered . | . . . Construction Impeded . | . . . Haulers Reinforced . | . . . Active Scanning Responses . | . . . Cargo Convoy Interrupts . | . . . Stealth | -11 -10 -10 --------- Run | Yrd Mat Min Distress Signals 1 | . 1 . Communications Jammed . | . . . Distress Signals . | . . . Times Spotted 34 | . 10 24 Peak Tracking Total 10 | . 3 10 Tactical Retreats 1 | . 1 . Traps | -11 -10 -10 ------- Run | Yrd Mat Min Traps Triggered 1 | . 1 . Indirectly . | . . . Trap Hack Attempts . | . . . Triggered . | . . . Disarmed . | . . . Reprogrammed . | . . . Reused . | . . . Traps Extracted . | . . . Installed . | . . . Triggered . | . . . Machines | -11 -10 -10 ---------- Run | Yrd Mat Min Machines Disabled . | . . . Max in Single Turn . | . . . Machines Repaired . | . . . Machines Dismantled . | . . . Machines Sabotaged . | . . . Overloaded Fab Kills . | . . . Hacking | -11 -10 -10 --------- Run | Yrd Mat Min Machines Accessed 2 | . 2 . Terminals 2 | . 2 . Fabricators . | . . . Repair Stations . | . . . Recycling Units . | . . . Scanalyzers . | . . . Garrison Access . | . . . Total Hacks 6 | . 6 . Successful 3 | . 3 . Failed 2 | . 2 . Catastrophic . | . . . Database Lockouts 1 | . 1 . Manual 3 | . 3 . Terminals 6 | . 6 . Fabricators . | . . . Repair Stations . | . . . Recycling Units . | . . . Scanalyzers . | . . . Garrison Access . | . . . Terminal Hacks 3 | . 3 . Record 1 | . 1 . Robot Analysis 1 | . 1 . Branch Access Points 1 | . 1 . Fabricator Hacks . | . . . Repair Station Hacks . | . . . Recycling Unit Hacks . | . . . Scanalyzer . | . . . Garrison Access Hacks . | . . . Unauthorized Hacks . | . . . Terminals . | . . . Fabricators . | . . . Repair Stations . | . . . Recycling Units . | . . . Scanalyzers . | . . . Garrison Access . | . . . Data Cores Recovered . | . . . Used . | . . . Hacking Detections 2 | . 2 . Full Trace Events . | . . . Feedback Events . | . . . Feedback Blocked . | . . . Robot Schematics Acquired . | . . . Robots Built . | . . . Authchips . | . . . Time . | . . . Total Robot Build Rating . | . . . Part Schematics Acquired . | . . . Parts Built . | . . . Authchips . | . . . Time . | . . . Total Part Build Rating . | . . . Part Studies Acquired . | . . . Parts Repaired . | . . . Time . | . . . Parts Recycled . | . . . Recycled Matter . | . . . Retrieved Matter . | . . . Retrieved Components . | . . . Parts Scanalyzed . | . . . Part Schematics Acquired . | . . . Parts Damaged . | . . . Bothacking | -11 -10 -10 ------------ Run | Yrd Mat Min Used RIF Installer . | . . . Robots Hacked . | . . . Non-combat . | . . . Combat . | . . . Robot Hacks Applied . | . . . Relay Couplers Released . | . . . Fabnet Peak Effective % . | . . . Robots Rewired . | . . . Allies Hacked . | . . . Hacks Repelled . | . . . Allies | -11 -10 -10 -------- Run | Yrd Mat Min Total Allies 2 | . . 2 Largest Group 2 | . . 2 Highest-Rated Group 45 | . . 45 Highest-Rated Ally 31 | . . 31 Total Orders . | . . . Ally Attacks 21 | . . 21 Total Damage 356 | . . 356 Kills 6 | . . 6 Allies Corrupted . | . . . Allies Melted . | . . . Intel | -11 -10 -10 ------- Run | Yrd Mat Min Active Infowar (turns) . | . . . Robot Analysis Total 1 | . 1 . Derelict Logs Recovered 1 | . . 1 Drone Launches . | . . . Drone Recoveries . | . . . Exploration | -11 -10 -10 ------------- Run | Yrd Mat Min Turns Passed 726 | . 406 320 Spaces Moved 474 | 1 235 238 Core 3 | . . 3 Treads . | . . . Legs 34 | 1 32 1 Wheels 437 | . 203 234 Hover . | . . . Flight . | . . . Fastest Speed 50 | 120 90 50 Average Speed 111 | 120 110 113 Slowest Speed 210 | 120 120 210 Overloaded Moves . | . . . Propulsion Burnouts . | . . . Robots Hopped . | . . . Potential Cave-ins . | . . . Cave-ins Triggered . | . . . Exploration Rate (%) 38 | 1 44 69 Regions Visited 2 Branch Regions 1 Pre-discovered Areas . | . . . Known Exits Taken 1 | . 1 . Unknown Exits Taken 1 | 1 . . Scrap Searched 1 | . . 1 Spaces Dug . | . . . Terrain Destroyed 46 | . . 46 Melee . | . . . Projectile . | . . . AOE 46 | . . 46 Terrain Rammed . | . . . Walls Destroyed . | . . . Machines Disabled . | . . . Actions | -11 -10 -10 --------- Run | Yrd Mat Min Total 605 | . 331 274 Wait 70 | . 54 16 Move 472 | . 234 238 Hop . | . . . Pick Up 7 | . 4 3 Fast Attach 2 | . 2 . Attach 3 | . 1 2 Detach 1 | . 1 . Swap 11 | . 7 4 Drop 3 | . 2 1 Fire 36 | . 26 10 Melee . | . . . Ram . | . . . Kick . | . . . Crush . | . . . Escape Stasis . | . . . Rewire . | . . . Trap . | . . . Miscellaneous . | . . . Route ------- -11/Scrapyard -10/Materials (discovered 2 exits: *Mat / *Min) -10/Mines (discovered 2 exits: *Mat x2) History --------- Turn | Location | Event 1 | -11/Scrapyard | Discovered new exit (range 0) 1 | -11/Scrapyard | Entered Materials 291 | -10/Materials | Identified exit to Mines 302 | -10/Materials | Build established: Mutant 326 | -10/Materials | Discovered new exit (range 6) 400 | -10/Materials | Central database locked down 407 | -10/Materials | Entered Mines 474 | -10/Mines | Identified exit to Materials 629 | -10/Mines | A weapon hastily lodged in a ceiling crevice suddenly fell to the ground 655 | -10/Mines | Discovered exit to Materials (range 7) 685 | -10/Mines | Assembled infested the area 717 | -10/Mines | Core integrity fell below 50% 722 | -10/Mines | Core integrity fell below 20% 726 | -10/Mines | Released all parts (4) 727 | -10/Mines | Destroyed by D-53 Grenadier with Mini Grenade Launcher Last Messages --------------- 00718_ Heat Sink destroyed. 00718_ as-48080 destroyed. 00718_ Wheel destroyed. 00720_ Critical hit (Burn: +80). 00721_ as-81660 destroyed. 00721_ as-01666 destroyed. 00723_ as-70879 destroyed. 00723_ as-19711 destroyed. 00723_ as-61962 destroyed. 00723_ as-97932 destroyed. 00724_ The unstable cave ceiling collapses. 00725_ as-37410 destroyed. 00726_ The unstable cave ceiling collapses. 00726_ Lgt. Nuclear Core destroyed. 00726_ Released Mak. Leg. 00726_ Released Slug Cannon. 00726_ Released Lrg. Storage Unit. 00726_ Released Mak. Leg. [Achievement: Live, Flee, And Rebuild] 00727_ The unstable cave ceiling collapses. Map ----- +----------------------------------------------------+ | ???## #???????????? | | ??## ############ #???????????? | | ??# ##??????????## #????????????? | | ### ##????????????## ! #????????????? | | ## #??????????????## #????????????? | | #???????????????# ### #????????????< | | ##???????????????## ##???? ??????????? | | ##?????????????????# ###??????? #?????????? | | ##?????????########## #????????????????????? | | #### ##??????????# #????????????????????? | | ???# #???????????# ######## #????????????????????? | | ???# #???????????# #??????# #????????????????????? | | ???# #???????????# #??????# #????????????????????? | | #### #??????????## ######?# #????????????????????? | | ? #??????????# #?# #????????????????????? | | #?###??????????# #?# ########?????????????? | | ################ #?# ##????????????? | | %% ## """ #?########% ##???????????? | | ! ## """ < #??????## #???????????? | | ######### ### ## """ #??##### #???????????? | | ????????# #?? ##########?## d #????????????? | | ????????# #?# ###????????# d ##???????????? | | ???????## ## ##??????## #???????????? | | ???????# ##?????# #????????????? | | ???????## """ ####### *[/ #????????????? | | ????????## """ @ ==]= #????????????? | | ?????????## """ ## *![ ##????????????? | | ?????????## #?#t # = #??????????? | | ??######## ###?# ## # #??????????? | | ??# %%= ##???# ?# ????????? | | ?## = ##????#??# ??????? | | ## ####??????? # ??????? | | ###????????? ### # ??????? | | ##?????????? #??# ???????? | | ######??????????? ???# # ???????? | | ###???????????????## ???# ## ### ???????? | | ###??????????????????# ????#=#?###?? ????????? | | #???????????????????? ????*=#?????? ??????????? | | ######??????????????? ?????#%????????????????????? | | ##?????????????????????!????????????????????? | | #????????????????????? ????????????????????? | | #??????????????????????????????????????????? | | #??????????????????????????????????????????? | | ## #??????????????????????????????????????????? | | ### #??????????????????????????????????????????? | | ??# ##?????????????????????????????????????????? | | ??# ##????????????????????????????????????????? | | ??## ##???????????????????????????????????????? | | ??## ####????????????????????????????????????? | | ### ##???????????????????????????????????? | +----------------------------------------------------+ Best States ------------- Heat Dissipation 35 Energy Generation 14 Energy Capacity 250 Matter Stores 300 Matter Capacity 300 Sight Range 16 Terrain Scan Density 10 Evasion (%) 55 Recoil Reduction 1 Item Schematics ----------------- None Robot Schematics ------------------ None Fabricated ------------ Nothing Repaired ---------- Nothing Studied --------- None Alien Tech Used ----------------- None Achievements -------------- Live, Flee, And Rebuild Challenges ------------ None Game ------ Seed ParticleDroneInitializer Manual? 0 Play Time 00:11:31 Cumulative 281.3 hours Start 2026.01.06 @ 17:15:48 End 2026.01.06 @ 17:26:12 Sessions 1 Manual Loads 0 Difficulty Rogue Special Mode None Game No. 185 Rogue 185 Adventurer 0 Explorer 0 Win Type - Total 5 Types 4/0/0/1/0/0/0/0/0/0 Lore% 32 Gallery% 60 Achievement% 32 Wizard Run 0 Options --------- Layout 2 ASCII 0 Keyboard 1 Movement Numpad Keybinds 0 Fullscreen 1 Font 32/SmallcapsGlow Map View 50x44 Zoom Use 0% Tactical HUD 1 Map Filters NONE Filters NONE Steam 1 RUN: 8e6c370a-cd70-4f59-8258-e32e06f5c541